bitfinex/quotes_ETHUSD_20220310
["timestamp","ask_amount","ask_price","bid_price","bid_amount"]
[1646947671602,0.12584139,2615.4,2615.3,4.99102065]
[1646947671818,0.04663095,2615.4,2615.3,4.99102065]
[1646947672002,0.12584618,2615.4,2615.3,4.99102065]
[1646947672203,0.12586288,2615.4,2615.3,4.99102065]
[1646947672444,0.12586288,2615.4,2615.3,1.49102065]
[1646947673645,0.04497434,2615.5,2615.4,64.0]
[1646947673845,0.0607982,2615.9,2615.5,0.04052281]
[1646947674046,0.0607982,2615.9,2615.5,3.54052281]
[1646947675149,0.76759835,2616.1,2615.5,3.54052281]
[1646947675353,0.7066072,2616.0,2615.5,3.54052281]
[1646947678506,1.6630372,2616.0,2615.5,3.54052281]
[1646947678704,1.6630372,2616.0,2615.5,4.54052281]
[1646947678903,1.6630372,2616.0,2615.5,1.04052281]
[1646947679705,0.0409227,2615.9,2615.5,1.04052281]
[1646947681255,0.9565,2615.8,2615.5,1.04052281]
[1646947681954,0.0409227,2615.9,2615.5,1.04052281]
[1646947683157,0.0409227,2615.9,2615.5,4.54052281]
[1646947683354,0.0409227,2615.9,2615.5,1.04052281]
[1646947687097,0.9565,2615.8,2615.5,1.04052281]
[1646947687352,0.05008204,2615.7,2615.5,1.04052281]
[1646947687753,1.05008204,2615.7,2615.5,1.04052281]
[1646947687956,0.06146282,2615.6,2615.5,0.04052281]
[1646947688357,1.72468002,2615.6,2615.5,0.04052281]
[1646947688555,2.01807282,2615.6,2615.5,0.04052281]
[1646947688758,1.01807282,2615.6,2615.5,0.04052281]
[1646947689355,2.72468002,2615.6,2615.5,0.04052281]
[1646947691494,3.72468002,2615.6,2615.5,0.04052281]
[1646947692494,2.76807002,2615.6,2615.5,0.04052281]
[1646947693695,1.86661979,2615.6,2615.5,0.04510234]
[1646947693896,2.86661979,2615.6,2615.5,0.04510234]
[1646947694297,3.82319979,2615.6,2615.5,0.04510234]
[1646947694697,3.26047807,2615.6,2615.5,0.04510234]
[1646947694944,3.90652988,2615.6,2615.5,0.04510234]
[1646947695142,1.94994988,2615.6,2615.5,0.04510234]
[1646947695342,2.94994988,2615.6,2615.5,0.04510234]
[1646947695543,1.24243525,2615.6,2615.5,0.04510234]
[1646947695748,2.19243525,2615.6,2615.5,0.04510234]
[1646947695946,1.19243525,2615.6,2615.5,0.04510234]
[1646947697449,1.89987337,2615.6,2615.5,0.04510234]
[1646947698048,1.19243525,2615.6,2615.5,0.04510234]
[1646947698450,1.89981915,2615.6,2615.5,0.04510234]
[1646947698693,1.89981915,2615.6,2615.5,0.046743]
[1646947699499,1.19243525,2615.6,2615.5,0.046743]
[1646947699700,1.2389708,2615.6,2615.5,0.046743]
[1646947699901,1.94631015,2615.6,2615.5,0.046743]
[1646947700602,1.2389708,2615.6,2615.5,1.51328908]
[1646947700806,0.2389708,2615.6,2615.5,1.51328908]
[1646947703349,0.2389708,2615.6,2615.5,5.01328908]
[1646947703744,0.2389708,2615.6,2615.5,5.01164842]
[1646947703945,0.2389708,2615.6,2615.5,1.51164842]
[1646947706995,0.2389708,2615.6,2615.5,5.01164842]
[1646947707193,0.2389708,2615.6,2615.5,1.51164842]
[1646947708601,0.2389708,2615.6,2615.5,5.01328908]
[1646947708797,0.2389708,2615.6,2615.5,1.51328908]
[1646947710649,0.2389708,2615.6,2615.5,5.01328908]
[1646947712452,0.1009708,2615.6,2615.5,5.01328908]
[1646947713993,0.76982368,2616.1,2615.6,44.14105094]
[1646947714198,0.76982368,2616.1,2615.7,3.5]
[1646947714397,0.70726288,2616.0,2615.7,3.5]
[1646947714598,0.70726288,2616.0,2615.6,44.14105094]
[1646947717442,0.70726288,2616.0,2615.7,3.5]
[1646947717648,0.70726288,2616.0,2615.7,4.4562928]
[1646947717845,0.70726288,2616.0,2615.7,0.9562928]
[1646947718048,0.70726288,2616.0,2615.7,4.4562928]
[1646947718447,0.70726288,2616.0,2615.8,0.00453565]
[1646947719249,0.70726288,2616.0,2615.7,4.29822806]
[1646947719452,0.04092749,2615.9,2615.7,4.29822806]
[1646947720051,0.04092749,2615.9,2615.8,3.5]
[1646947720655,0.04092749,2615.9,2615.7,0.79822806]
[1646947720853,0.04092749,2615.9,2615.7,4.29822806]
[1646947721091,0.04092749,2615.9,2615.7,0.79822806]
[1646947721496,0.04092749,2615.9,2615.7,4.29822806]
[1646947722197,0.04092749,2615.9,2615.7,0.79822806]
[1646947722595,0.04092749,2615.9,2615.7,4.29822806]
[1646947722798,0.04092749,2615.9,2615.8,3.5]
[1646947723398,0.04168878,2616.0,2615.9,49.0]
[1646947724400,0.04142635,2616.0,2615.9,49.0]
[1646947728457,0.04142635,2616.0,2615.9,50.0]
[1646947730301,0.03937495,2616.0,2615.9,50.0202867]
[1646947732467,0.13857091,2616.0,2615.9,51.48220952]
[1646947734271,0.03937495,2616.0,2615.9,51.48220952]
[1646947734472,0.13860858,2616.0,2615.9,51.48220952]
[1646947734677,0.03912847,2616.0,2615.9,51.48220952]
[1646947734873,0.13836365,2616.0,2615.9,51.48220952]
[1646947735074,0.03912847,2616.0,2615.9,51.48220952]
[1646947735272,0.13836001,2616.0,2615.9,51.48220952]
[1646947735474,0.03912847,2616.0,2615.9,52.03320952]
[1646947735674,0.13833769,2616.0,2615.9,52.33320952]
[1646947735873,0.03912847,2616.0,2615.9,52.33320952]
[1646947736092,0.13833782,2616.0,2615.9,52.33320952]
[1646947736294,0.10079481,2616.5,2616.1,0.22003382]
[1646947736494,0.09992805,2616.4,2616.2,1.46192282]
[1646947736702,0.09992805,2616.4,2616.2,4.96192282]
[1646947736901,0.09992805,2616.4,2616.2,3.5]
[1646947739103,0.09992805,2616.4,2616.1,1.17610602]
[1646947739302,0.09992805,2616.4,2616.2,1.46048921]
[1646947740046,0.09992805,2616.3,2616.2,1.46048921]
[1646947740248,0.09992805,2616.5,2616.2,1.46048921]
[1646947740448,0.1553738,2616.5,2616.2,1.46048921]
[1646947740648,0.09992805,2616.4,2616.2,1.46048921]
[1646947741448,0.09992805,2616.4,2616.2,1.41048921]
[1646947744100,0.09992805,2616.4,2616.1,0.22003382]
[1646947744302,0.05831908,2616.4,2616.1,0.22003382]
[1646947744701,0.95658196,2616.4,2616.1,0.22003382]
[1646947744902,0.04020201,2616.3,2616.1,0.22003382]
[1646947745103,0.09316132,2616.3,2616.1,0.22003382]
[1646947751305,0.8004242,2616.3,2616.1,0.22003382]
[1646947751503,0.06000364,2616.2,2616.1,0.22003382]
[1646947752504,1.01636364,2616.2,2616.1,0.22003382]
[1646947752705,2.01636364,2616.2,2616.1,0.22003382]
[1646947752909,2.72362652,2616.2,2616.1,0.22003382]
[1646947753311,4.02362652,2616.2,2616.1,0.22003382]
[1646947753609,3.25636,2616.2,2616.1,0.22003382]
[1646947753810,2.44736,2616.2,2616.1,0.22003382]
[1646947754008,3.44736,2616.2,2616.1,0.22003382]
[1646947754208,1.44736,2616.2,2616.1,0.22003382]
[1646947754410,2.44736,2616.2,2616.1,0.22003382]
[1646947754609,4.38950293,2616.2,2616.1,0.22003382]
[1646947754859,6.85209911,2616.2,2616.1,0.22003382]
[1646947755061,3.29515489,2616.2,2616.1,0.22003382]
[1646947755257,2.48615489,2616.2,2616.1,0.22003382]
[1646947755458,3.48615489,2616.2,2616.1,0.22003382]
[1646947755858,4.70836928,2616.2,2616.1,0.22003382]
[1646947756964,3.29515489,2616.2,2616.1,0.22003382]
[1646947757563,4.23672842,2616.2,2616.1,0.22003382]
[1646947759700,3.29515489,2616.2,2616.1,0.22003382]
[1646947760104,2.29515489,2616.2,2616.1,0.22003382]
[1646947760306,3.29515489,2616.2,2616.1,0.22003382]
[1646947760507,2.29515489,2616.2,2616.1,0.22003382]
[1646947760708,3.29515489,2616.2,2616.1,0.22003382]
[1646947760906,2.29515489,2616.2,2616.1,0.22003382]
[1646947761108,4.23672842,2616.2,2616.1,0.22003382]
[1646947761505,4.34687009,2616.2,2616.1,0.22003382]
[1646947766299,4.34687009,2616.2,2616.1,0.21850527]
[1646947766498,1.44893656,2616.2,2616.1,0.21850527]
[1646947766897,0.44893656,2616.2,2616.1,0.21850527]
[1646947767097,0.14893656,2616.2,2616.1,0.21850527]
[1646947767303,1.1545766,2616.2,2616.1,0.21850527]
[1646947767503,0.8545766,2616.2,2616.1,0.21850527]
[1646947767702,0.14893656,2616.2,2616.1,0.21850527]
[1646947768408,0.8544666,2616.2,2616.1,0.21850527]
[1646947770753,0.14893656,2616.2,2616.1,0.21850527]
[1646947772449,0.85452994,2616.2,2616.1,0.21850527]
[1646947772951,1.85452994,2616.2,2616.1,0.21850527]
[1646947773602,1.91077678,2616.2,2616.1,0.21850527]
[1646947774597,0.91077678,2616.2,2616.1,0.21850527]
[1646947775603,0.2051834,2616.2,2616.1,0.21850527]
[1646947776003,1.2051834,2616.2,2616.1,0.21850527]
[1646947776207,1.91093761,2616.2,2616.1,0.21850527]
[1646947776404,1.85469077,2616.2,2616.1,0.21850527]
[1646947783002,0.85469077,2616.2,2616.1,0.21850527]
[1646947785449,1.85469077,2616.2,2616.1,0.21850527]
[1646947787755,0.85469077,2616.2,2616.1,0.2174666]
[1646947787954,0.14893656,2616.2,2616.1,0.2174666]
[1646947788153,0.14893656,2616.2,2616.1,1.67153924]
[1646947797013,0.14893656,2616.2,2616.1,0.2174666]
[1646947797210,0.14893656,2616.2,2616.1,1.67036197]
[1646947797410,0.14893656,2616.2,2616.1,0.2174666]
[1646947797610,0.14893656,2616.2,2616.1,1.67031714]
[1646947797814,0.14893656,2616.2,2616.1,0.2174666]
[1646947798010,0.14893656,2616.2,2616.1,1.67028434]
[1646947798210,0.14893656,2616.2,2616.1,0.2174666]
[1646947798410,0.14893656,2616.2,2616.1,1.67025787]
[1646947798611,0.14893656,2616.2,2616.1,0.2174666]
[1646947798811,0.14893656,2616.2,2616.1,1.67020353]
[1646947799013,0.14893656,2616.2,2616.1,0.2174666]
[1646947799212,0.14893656,2616.2,2616.1,1.67020514]
[1646947799413,0.14893656,2616.2,2616.1,0.2174666]
[1646947799615,0.14893656,2616.2,2616.1,1.67008733]
[1646947799860,0.14893656,2616.2,2616.1,0.2174666]
[1646947800255,0.14893656,2616.2,2616.1,1.66990558]
[1646947800455,1.14893656,2616.2,2616.1,1.66980595]
[1646947800658,1.14893656,2616.2,2616.1,1.66944004]
[1646947800858,1.14893656,2616.2,2616.1,0.2174666]
[1646947801359,1.14893656,2616.2,2616.1,1.6692607]
[1646947801559,1.85469077,2616.2,2616.1,0.2174666]
[1646947801960,2.15469077,2616.2,2616.1,0.2174666]
[1646947802165,1.44893656,2616.2,2616.1,0.2174666]
[1646947803160,0.44893656,2616.2,2616.1,0.10308499]
[1646947803603,1.39051009,2616.2,2616.1,0.10308499]
[1646947803904,3.30830102,2616.2,2616.1,0.10308499]
[1646947804103,2.36672749,2616.2,2616.1,0.10308499]
[1646947804301,3.36672749,2616.2,2616.1,0.10308499]
[1646947804502,2.17572749,2616.2,2616.1,0.10308499]
[1646947804706,3.36672749,2616.2,2616.1,0.10308499]
[1646947804907,3.77994188,2616.2,2616.1,0.10308499]
[1646947805107,4.77994188,2616.2,2616.1,0.10308499]
[1646947805507,1.33993656,2616.2,2616.1,0.10308499]
[1646947807859,1.14893656,2616.2,2616.1,0.10308499]
[1646947809259,1.14893656,2616.2,2616.1,1.90032659]
[1646947809662,0.14893656,2616.2,2616.1,1.90032659]
[1646947809865,0.22672361,2616.2,2616.1,1.90032659]
[1646947810063,0.93349093,2616.2,2616.1,5.40032659]
[1646947810261,0.22672361,2616.2,2616.1,1.90032659]
[1646947810565,0.22672361,2616.2,2616.1,3.3278108]
[1646947813809,0.70676732,2616.4,2616.1,3.3278108]
[1646947814012,0.13501605,2616.3,2616.2,69.42748421]
[1646947814210,1.70660165,2616.6,2616.3,36.0]
[1646947814211,0.27134502,2616.6,2616.3,36.0]
[1646947814411,0.94210906,2617.0,2616.7,61.5]
[1646947814613,1.41316359,2617.5,2616.8,50.3814]
[1646947814864,5.77960615,2617.6,2617.2,0.0556463]
[1646947814865,1.0,2617.6,2617.2,0.0556463]
[1646947815068,1.0,2617.6,2617.3,1.50648]
[1646947815265,1.0,2617.6,2617.3,2.64618]
[1646947815663,1.60416359,2618.2,2617.6,0.00148297]
[1646947815664,1.41316359,2618.2,2617.6,0.00148297]
[1646947815963,1.60396359,2618.4,2617.7,0.551]
[1646947816164,1.60396359,2618.4,2617.8,3.5]
[1646947816363,1.60396359,2618.4,2617.8,0.551]
[1646947816764,1.41316359,2618.4,2617.8,0.551]
[1646947816966,1.41316359,2618.5,2617.8,4.051]
[1646947817164,1.41316359,2618.5,2617.8,0.551]
[1646947817363,1.41316359,2618.5,2617.8,4.051]
[1646947817567,1.41316359,2618.5,2617.8,5.0064656]
[1646947817767,1.1908,2618.6,2617.9,0.95543]
[1646947817967,0.1908,2618.6,2618.0,3.5]
[1646947818367,1.60396359,2618.7,2618.0,3.5]
[1646947818800,0.00446982,2618.4,2618.0,3.5]
[1646947819500,2.60396359,2618.8,2618.0,4.4553952]
[1646947819699,1.60396359,2618.8,2618.0,4.4553952]
[1646947819905,0.00446986,2618.3,2618.0,3.5]
[1646947820108,0.00446986,2618.3,2617.8,0.551]
[1646947820305,0.00446986,2618.3,2617.9,3.5]
[1646947820705,0.95547,2618.7,2617.9,3.5]
[1646947821105,0.00446995,2618.2,2617.9,3.5]
[1646947821603,0.00446995,2618.2,2617.9,1.8208606]
[1646947821804,0.00446995,2618.2,2617.8,1.5064645]
[1646947822004,0.95547,2618.7,2617.8,1.5064645]
[1646947822207,0.00446999,2618.2,2617.8,1.5064645]
[1646947822658,0.00446999,2618.2,2618.0,0.08798542]
[1646947823055,1.0,2618.5,2618.0,0.08798542]
[1646947823456,0.00422324,2618.2,2618.0,2.34256583]
[1646947824057,0.00422324,2618.2,2618.1,0.00250461]
[1646947824257,0.00422324,2618.2,2618.1,2.25697236]
[1646947824459,1.0,2618.5,2618.1,2.25697236]
[1646947824658,0.0734686,2618.2,2618.1,2.25697236]
[1646947824859,0.0734686,2618.2,2618.1,4.05421396]
[1646947825464,0.06924536,2618.2,2618.1,4.05421396]
[1646947827203,0.06924536,2618.2,2618.1,11.2861861]
[1646947827204,0.03434641,2618.2,2618.1,11.2861861]
[1646947827401,0.03434641,2618.2,2618.1,1.79974621]
[1646947827602,0.27753006,2618.2,2618.1,1.79974621]
[1646947827805,1.27753006,2618.2,2618.1,1.79974621]
[1646947828005,3.39334015,2618.2,2618.1,1.79974621]
[1646947828206,4.39334015,2618.2,2618.1,1.79974621]
[1646947828803,3.39334015,2618.2,2618.1,1.79974621]
[1646947829205,4.39334015,2618.2,2618.1,1.79974621]
[1646947830263,4.37591639,2618.2,2618.1,1.79974621]
[1646947832165,4.18501639,2618.2,2618.1,1.79974621]
[1646947836107,15.65052001,2618.2,2618.1,1.79974621]
[1646947838054,40.5,2618.1,2617.6,0.00148297]
[1646947838252,1.9119,2617.9,2617.6,0.00148297]
[1646947838653,9.24450362,2617.8,2617.6,0.00148297]
[1646947838853,10.24450362,2617.7,2617.6,0.00148297]
[1646947839053,20.592609,2617.7,2617.6,0.00148297]
[1646947839253,31.13711262,2617.7,2617.6,0.00148297]
[1646947842107,31.71687905,2617.7,2617.6,0.00148297]
[1646947843810,22.47237543,2617.7,2617.6,0.00148297]
[1646947844410,22.56451455,2617.7,2617.6,0.00148297]
[1646947844609,22.5950988,2617.7,2617.6,0.00148297]
[1646947845456,22.7860988,2617.7,2617.6,0.00148297]
[1646947845660,61.5,2617.6,2616.8,2.85845228]
[1646947845960,61.5,2617.6,2616.1,9.8714]
[1646947845961,1.9125567,2617.3,2616.1,9.8714]
[1646947846157,1.0,2616.8,2616.1,9.8714]
[1646947846356,1.0,2616.8,2616.0,1.22020945]
[1646947846659,1.3,2616.8,2616.0,1.22020945]
[1646947846857,1.05904974,2616.5,2616.0,1.22020945]
[1646947847055,2.01530974,2616.5,2616.0,0.08110945]
[1646947848713,2.01530974,2616.5,2616.2,0.00672905]
[1646947849111,3.01530974,2616.5,2616.2,0.00672905]
[1646947849311,4.31530974,2616.5,2616.2,0.00672905]
[1646947849513,4.62480974,2616.5,2616.2,0.00672905]
[1646947850714,5.58122974,2616.5,2616.2,0.00672905]
[1646947850912,5.27172974,2616.5,2616.2,0.00672905]
[1646947852954,4.31530974,2616.5,2616.2,0.00672905]
[1646947853754,0.11403032,2616.4,2616.2,0.00672905]
[1646947853958,0.11403032,2616.4,2615.8,0.07034535]
[1646947855558,0.06403032,2616.4,2615.8,0.07034535]
[1646947856613,0.06403032,2616.4,2615.8,0.45174535]
[1646947856802,0.36403032,2616.4,2615.8,0.07034535]
[1646947857001,0.06403032,2616.4,2615.8,0.07034535]
[1646947857200,0.36403032,2616.4,2615.8,0.07034535]
[1646947857600,0.06403032,2616.4,2615.8,0.07034535]
[1646947857804,0.95632,2616.3,2615.8,0.07034535]
[1646947858607,0.95632,2616.3,2616.0,0.00451527]
[1646947858807,1.84110901,2616.3,2616.0,0.00451527]
[1646947859409,1.87276031,2616.3,2616.0,0.00451527]
[1646947860466,2.87276031,2616.3,2616.0,0.00451527]
[1646947860867,3.87276031,2616.3,2616.0,0.00451527]
[1646947861467,2.9879713,2616.3,2616.0,0.00451527]
[1646947862667,1.9879713,2616.3,2616.0,0.00451527]
[1646947862870,2.9879713,2616.3,2616.0,0.00451527]
[1646947863068,1.9879713,2616.3,2616.0,0.00451527]
[1646947863267,2.9879713,2616.3,2616.0,0.00451527]
[1646947863468,1.9879713,2616.3,2616.0,0.00451527]
[1646947863930,1.9879713,2616.3,2616.2,0.0015577]
[1646947864931,1.0316513,2616.3,2616.2,0.0015577]
[1646947868660,1.0316513,2616.3,2616.2,0.00517135]
[1646947869666,0.0316513,2616.3,2616.2,0.00517135]
[1646947874007,0.0316513,2616.3,2616.2,0.0015577]
[1646947878701,0.0316513,2616.3,2616.2,0.00517135]
[1646947880009,0.0316513,2616.3,2616.2,0.00372136]
[1646947882456,1.0316513,2616.3,2616.2,0.00372136]
[1646947883855,1.0316513,2616.3,2615.8,1.56404267]
[1646947884056,0.95635,2616.2,2615.8,1.56404267]
[1646947884256,1.25635,2616.2,2615.8,1.56404267]
[1646947886413,0.3,2616.2,2615.8,1.56404267]
[1646947886614,1.3316513,2616.3,2615.8,1.56404267]
[1646947887818,0.95633,2616.2,2615.8,1.56404267]
[1646947888615,2.18104258,2616.2,2615.8,1.56404267]
[1646947889015,0.95633,2616.2,2615.8,1.56404267]
[1646947889217,0.06167975,2616.1,2615.8,1.56404267]
[1646947889619,0.06167975,2616.1,2615.9,3.5]
[1646947889864,0.06167975,2616.1,2616.0,1.56404267]
[1646947893707,0.06167975,2616.1,2615.7,1.56822867]
[1646947893912,0.0926403,2616.1,2615.7,1.56822867]
[1646947894112,0.0926403,2616.1,2615.7,1.56404267]
[1646947894414,2.98725587,2616.1,2615.7,1.56822867]
[1646947894615,3.28725587,2616.1,2615.8,1.56404267]
[1646947894814,1.0,2616.0,2615.9,1.56404267]
[1646947895214,1.0,2616.0,2615.6,1.56404267]
[1646947895414,0.95646,2615.9,2615.7,1.57685803]
[1646947895619,0.95646,2615.9,2615.8,1.57268195]
[1646947896015,0.95549949,2615.9,2615.8,1.57268195]
[1646947896817,0.95549949,2615.9,2615.7,0.00417606]
[1646947897018,0.95549949,2615.9,2615.7,1.57685801]
[1646947897219,0.95549949,2615.9,2615.8,1.57268195]
[1646947897462,1.0490303,2616.1,2615.8,1.57268195]
[1646947897664,0.0926403,2616.1,2615.8,5.14486671]
[1646947897863,0.0926403,2616.1,2615.9,1.64262967]
[1646947898064,0.0926403,2616.1,2616.0,1.57268195]
[1646947898963,0.93388497,2616.3,2616.0,1.57268195]
[1646947899163,0.3,2616.4,2616.0,1.57268195]
[1646947899164,1.23388497,2616.4,2616.0,1.57268195]
[1646947899363,0.93388497,2616.3,2616.0,1.57268195]
[1646947904118,0.06185881,2616.2,2616.0,1.57268195]
[1646947904317,0.99574378,2616.2,2616.0,1.57268195]
[1646947904993,0.06185881,2616.2,2616.0,1.57268195]
[1646947905196,0.99574378,2616.2,2616.0,1.57268195]
[1646947906998,0.06185881,2616.2,2616.0,1.57268195]
[1646947909313,0.03079333,2616.1,2616.0,1.57268195]
[1646947911120,1.21660195,2616.2,2616.0,1.57268195]
[1646947911517,0.09014515,2615.7,2615.5,1.15474655]
[1646947911717,0.09014515,2615.7,2615.6,0.06515251]
[1646947912573,0.09014515,2615.7,2615.5,1.1531]
[1646947912975,0.14976729,2615.7,2615.5,1.1531]
[1646947915882,0.14976729,2615.7,2615.5,1.15757958]
[1646947917012,0.14976729,2615.7,2615.5,1.1531]
[1646947917212,0.14976729,2615.7,2615.5,1.15757958]
[1646947918014,0.14976729,2615.7,2615.5,1.1531]
[1646947918415,0.14976729,2615.7,2615.5,1.15757958]
[1646947918616,0.18237858,2615.7,2615.6,0.02816885]
[1646947922867,0.12275644,2615.7,2615.6,0.02816885]
[1646947923911,0.15481856,2615.7,2615.6,0.02816885]
[1646947931819,0.23358218,2615.7,2615.6,0.02816885]
[1646947932023,0.23358218,2615.7,2615.6,1.5726472]
[1646947934967,0.23358218,2615.7,2615.6,0.02816885]
[1646947935166,0.23358218,2615.7,2615.6,1.57264827]
[1646947935365,0.23358218,2615.7,2615.6,0.02816885]
[1646947935566,0.23358218,2615.7,2615.6,1.5726096]
[1646947935767,0.23358218,2615.7,2615.6,0.02816885]
[1646947935966,0.23358218,2615.7,2615.6,1.57283395]
[1646947936167,0.23358218,2615.7,2615.6,0.02816885]
[1646947936368,0.23358218,2615.7,2615.6,0.02667193]
[1646947936770,0.23358218,2615.7,2615.6,1.57158097]
[1646947936971,0.23358218,2615.7,2615.6,1.57158047]
[1646947937177,0.23358218,2615.7,2615.6,1.57147464]
[1646947937371,0.23358218,2615.7,2615.6,0.02667193]
[1646947937572,0.23358218,2615.7,2615.6,1.57149187]
[1646947937973,0.23358218,2615.7,2615.6,1.57142295]
[1646947938646,0.23358218,2615.7,2615.6,1.57145882]
[1646947938835,0.23358218,2615.7,2615.6,1.57138866]
[1646947939036,0.23358218,2615.7,2615.6,0.02667193]
[1646947939636,0.23358218,2615.7,2615.6,1.57138508]
[1646947939841,0.23358218,2615.7,2615.6,0.02667193]
[1646947940237,0.23358218,2615.7,2615.6,1.57337476]
[1646947940437,0.23358218,2615.7,2615.6,0.02667193]
[1646947940637,0.23358218,2615.7,2615.6,1.57339538]
[1646947940838,0.23358218,2615.7,2615.6,1.57316214]
[1646947945874,0.2335849,2615.7,2615.6,1.57316214]
[1646947946113,0.23358496,2615.7,2615.6,1.57316214]
[1646947946315,0.15481856,2615.7,2615.6,1.57316214]
[1646947946517,0.23358519,2615.7,2615.6,1.57316214]
[1646947946716,0.15481856,2615.7,2615.6,1.57316214]
[1646947946917,0.23358502,2615.7,2615.6,1.57316214]
[1646947947117,0.15481856,2615.7,2615.6,1.57316214]
[1646947947317,0.23358538,2615.7,2615.6,1.57316214]
[1646947947517,0.15481856,2615.7,2615.6,1.57316214]
[1646947947721,0.23358457,2615.7,2615.6,1.57316214]
[1646947947918,0.15481856,2615.7,2615.6,1.57316214]
[1646947948120,0.23358614,2615.7,2615.6,1.57316214]
[1646947948319,0.15481856,2615.7,2615.6,1.57316214]
[1646947948520,0.23358581,2615.7,2615.6,1.57316214]
[1646947948719,0.15481856,2615.7,2615.6,1.57316214]
[1646947948919,0.23358579,2615.7,2615.6,1.57316214]
[1646947949120,0.15481856,2615.7,2615.6,1.57316214]
[1646947949319,0.23358591,2615.7,2615.6,1.57316214]
[1646947949520,0.15481856,2615.7,2615.6,1.57316214]
[1646947949721,0.23358616,2615.7,2615.6,1.57316214]
[1646947949973,0.15481856,2615.7,2615.6,1.57316214]
[1646947950174,0.23358592,2615.7,2615.6,1.57316214]
[1646947950377,0.15481856,2615.7,2615.6,1.57316214]
[1646947950572,0.23358591,2615.7,2615.6,1.57316214]
[1646947950772,0.15481856,2615.7,2615.6,1.57316214]
[1646947950972,0.23358586,2615.7,2615.6,1.57316214]
[1646947951172,0.15481856,2615.7,2615.6,1.57316214]
[1646947951374,0.23358558,2615.7,2615.6,1.57316214]
[1646947951576,0.15481856,2615.7,2615.6,1.57316214]
[1646947951773,0.2335856,2615.7,2615.6,1.57316214]
[1646947951973,0.15481856,2615.7,2615.6,1.57316214]
[1646947952375,0.23358535,2615.7,2615.6,1.57316214]
[1646947952575,0.15481856,2615.7,2615.6,1.57316214]
[1646947952774,0.23358515,2615.7,2615.6,1.57316214]
[1646947952980,0.15481856,2615.7,2615.6,1.57316214]
[1646947953176,0.23358515,2615.7,2615.6,1.57316214]
[1646947953378,0.15481856,2615.7,2615.6,1.57316214]
[1646947953612,0.23358515,2615.7,2615.6,1.57316214]
[1646947953813,0.23358515,2615.7,2615.6,5.62416214]
[1646947953814,0.15481856,2615.7,2615.6,5.62416214]
[1646947954020,0.12220727,2615.7,2615.6,6.31289842]
[1646947954217,0.03233736,2615.8,2615.7,59.0]
[1646947954414,0.70794269,2616.5,2615.8,0.07786593]
[1646947954617,0.07875632,2616.4,2616.0,3.0]
[1646947954816,0.07875632,2616.3,2616.1,5.59749021]
[1646947955020,0.07875632,2616.6,2616.2,1.54649021]
[1646947955221,0.07875632,2616.6,2616.3,0.551]
[1646947955421,0.07875632,2616.6,2616.3,1.5068966]
[1646947955622,0.00227877,2616.5,2616.3,1.5068966]
[1646947956024,0.00227877,2616.5,2616.4,1.54572961]
[1646947956621,0.07874821,2616.6,2616.4,5.04572961]
[1646947956920,0.08323728,2616.6,2616.5,5.04572961]
[1646947957765,0.07874821,2616.6,2616.5,5.04572961]
[1646947959165,0.00448898,2616.7,2616.5,5.05946362]
[1646947959367,0.00448898,2616.7,2616.6,5.04572961]
[1646947959767,0.08323505,2616.7,2616.6,5.04572961]
[1646947960173,0.07874607,2616.7,2616.6,5.04572961]
[1646947960575,0.07874607,2616.7,2616.6,6.00158991]
[1646947961816,0.07874607,2616.7,2616.6,6.55258991]
[1646947962715,0.07874607,2617.2,2616.6,6.55258991]
[1646947962915,0.0044889,2616.8,2616.7,1.54572961]
[1646947963115,0.0044889,2616.8,2616.7,5.04572961]
[1646947963322,0.08323497,2616.8,2616.7,5.04572961]
[1646947963916,0.07874607,2616.8,2616.7,5.04572961]
[1646947964318,0.10620321,2616.8,2616.7,3.5]
[1646947964520,0.10620062,2616.8,2616.6,0.01369412]
[1646947964719,0.07874348,2616.7,2616.6,0.01369412]
[1646947964970,0.02745714,2616.8,2616.6,1.55206037]
[1646947965172,0.03181133,2616.8,2616.6,0.01369412]
[1646947966272,0.02745714,2616.8,2616.6,0.01369412]
[1646947966473,0.03181133,2616.8,2616.6,0.01369412]
[1646947967476,0.02745714,2616.8,2616.6,0.01369412]
[1646947967677,0.03181133,2616.8,2616.6,0.01369412]
[1646947968722,0.02745714,2616.8,2616.6,0.01369412]
[1646947968922,0.03162469,2616.8,2616.6,0.01369412]
[1646947969724,0.02689395,2616.7,2616.6,0.01369412]
[1646947970726,0.02689395,2616.7,2616.6,3.51369412]
[1646947971231,0.02689395,2616.7,2616.6,0.01369412]
[1646947972466,0.10563303,2616.7,2616.6,0.01369412]
[1646947973267,0.10563398,2616.7,2616.6,0.01369412]
[1646947973669,0.10563398,2616.7,2616.6,3.51369412]
[1646947973670,0.02689395,2616.7,2616.6,3.51369412]
[1646947974071,0.02689395,2616.7,2616.6,0.01369412]
[1646947974873,0.10563302,2616.7,2616.6,0.01369412]
[1646947975074,0.02689395,2616.7,2616.6,0.01369412]
[1646947975974,0.10563293,2616.7,2616.6,0.01369412]
[1646947976250,0.10563324,2616.7,2616.6,0.01369412]
[1646947976455,0.10563324,2616.7,2616.6,0.01252898]
[1646947977050,0.02689395,2616.7,2616.6,0.01252898]
[1646947979351,0.10563872,2616.7,2616.6,0.01252898]
[1646947979752,0.02689395,2616.7,2616.6,0.01252898]
[1646947980368,0.10563811,2616.7,2616.6,0.01252898]
[1646947980571,0.10563811,2616.7,2616.6,0.01127609]
[1646947982169,0.10563811,2616.7,2616.5,1.01454389]
[1646947982470,0.07874416,2616.6,2616.2,0.551]
[1646947982669,0.07874416,2616.6,2616.3,1.53756036]
[1646947983270,0.07874416,2616.6,2616.1,9.597]
[1646947983470,1.14719,2616.5,2616.0,1.1329]
[1646947983723,0.13988727,2616.4,2616.0,1.1329]
[1646947983926,0.07874416,2616.3,2616.0,1.1329]
[1646947986929,0.07874416,2616.3,2616.1,1.5396506]
[1646947987567,0.07874416,2616.3,2616.0,1.1329]
[1646947988070,0.07874416,2616.3,2616.1,1.5403329]
[1646947990073,0.02910147,2616.2,2616.1,1.5403329]
[1646947990274,0.10784563,2616.2,2616.1,1.5403329]
[1646947996579,0.04555826,2616.4,2616.1,1.5403329]
[1646947999228,0.0587408,2616.2,2616.1,1.5403329]
[1646948005694,0.0587408,2616.2,2616.0,1.1329]
[1646948008727,0.0587408,2616.2,2615.6,0.08424965]
[1646948008929,0.0587408,2616.2,2615.6,0.00418489]
[1646948009129,1.76699337,2616.2,2615.6,0.00418489]
[1646948009526,1.76699337,2616.2,2615.4,5.7363]
[1646948009726,1.76699337,2616.2,2615.4,4.2363]
[1646948009974,1.04631061,2616.0,2615.6,0.00418472]
[1646948010177,2.00284061,2616.0,2615.6,0.00418472]
[1646948010374,1.07010692,2615.9,2615.6,0.00418472]
[1646948010873,1.07010692,2615.9,2615.4,1.2492]
[1646948010874,0.04857349,2615.8,2615.4,1.2492]
[1646948011074,0.04857349,2615.8,2615.6,0.00418463]